Workbook

Sheet Sheet1
A1: valuation date | B1: Payment Date | C1: Contributors | D1: Contribution | E1: Last NAV | F1: Total Value | G1: Redemptions | H1: NAV after Redemptions | I1: distributable returns | J1: Gain per member | K1: Gross NAV | L1: Mgt Fee | M1: Current NAV
A2: 2016-05-31 | B2: 2016-05-27 | C2: Adom Gideon | D2: 25 | F2: =+SUM($D2:$E2) -> 25 | H2: =SUM($F2,-$G2) -> 25 | I2: =SUMIF([1]InterestSharing!$K:$K,$A2,[1]InterestSharing!$I:$I) -> 2.284931507 | K2: =+SUM($H2,$J2) -> 25 | L2: =+$K2*2.5/100*0.0833333333333333 -> 0.05208333333 | M2: =SUM($K2,-$L2) -> 24.94791667
B3: 2016-05-27 | C3: Borsuwie Mahamah Kushiatu | D3: 18.75 | F3: 18.75 | H3: 18.75 | K3: 18.75 | L3: 0.0390625 | M3: 18.7109375
B4: 2016-05-27 | C4: Charity Appiah Kubi | D4: 37.5 | F4: 37.5 | H4: 37.5 | K4: 37.5 | L4: 0.078125 | M4: 37.421875
B5: 2016-05-27 | C5: Isaiah Brobbey | D5: 56.25 | F5: 56.25 | H5: 56.25 | K5: 56.25 | L5: 0.1171875 | M5: 56.1328125
B6: 2016-05-27 | C6: Lambert Kofi Osei | D6: 320 | F6: 320 | H6: 320 | K6: 320 | L6: 0.6666666667 | M6: 319.3333333
B7: 2016-05-27 | C7: Patricia Asare | D7: 25 | F7: 25 | H7: 25 | K7: 25 | L7: 0.05208333333 | M7: 24.94791667
B8: 2016-05-27 | C8: Stephen Banenjo | D8: 150 | F8: 150 | H8: 150 | K8: 150 | L8: 0.3125 | M8: 149.6875
B9: 2016-05-27 | C9: Wilhemina Osei Akomeah | D9: 37.5 | F9: 37.5 | H9: 37.5 | K9: 37.5 | L9: 0.078125 | M9: 37.421875
B10: 2016-05-27 | C10: Yaw Asiedu | D10: 25 | F10: 25 | H10: 25 | K10: 25 | L10: 0.05208333333 | M10: 24.94791667
D11: =SUM(D2:D10) -> 695 | E11: =SUM(E2:E10) -> 0 | F11: =SUM(F2:F10) -> 695 | G11: =SUM(G2:G10) -> 0 | H11: =SUM(H2:H10) -> 695 | K11: =SUM(K2:K10) -> 695 | L11: =SUM(L2:L10) -> 1.447916667 | M11: =SUM(M2:M10) -> 693.5520833
A13: 2016-06-30 | B13: 2016-06-15 | C13: Adom Gideon | D13: 25 | F13: =+SUM($D13:$E13) -> 25 | H13: =SUM($F13,-$G13) -> 25 | I13: =SUMIF([1]InterestSharing!$K:$K,$A13,[1]InterestSharing!$I:$I) -> 29.72358904 | K13: =+SUM($H13,$J13) -> 25 | L13: =+$K13*2.5/100*0.0833333333333333 -> 0.05208333333 | M13: =SUM($K13,-$L13) -> 24.94791667
B14: 2016-06-15 | C14: Borsuwie Mahamah Kushiatu | D14: 18.75 | F14: 18.75 | H14: 18.75 | K14: 18.75 | L14: 0.0390625 | M14: 18.7109375
B15: 2016-06-15 | C15: Charity Appiah Kubi | D15: 37.5 | F15: 37.5 | H15: 37.5 | K15: 37.5 | L15: 0.078125 | M15: 37.421875
B16: 2016-06-15 | C16: Isaac Bannor | D16: 43.75 | F16: 43.75 | H16: 43.75 | K16: 43.75 | L16: 0.09114583333 | M16: 43.65885417
B17: 2016-06-15 | C17: Isaiah Brobbey | D17: 56.25 | F17: 56.25 | H17: 56.25 | K17: 56.25 | L17: 0.1171875 | M17: 56.1328125
B18: 2016-06-15 | C18: Judith Danso | D18: 75 | F18: 75 | H18: 75 | K18: 75 | L18: 0.15625 | M18: 74.84375
B19: 2016-06-15 | C19: Lambert Kofi Osei | D19: 320 | F19: 320 | H19: 320 | K19: 320 | L19: 0.6666666667 | M19: 319.3333333
B20: 2016-06-15 | C20: Patricia Asare | D20: 25 | F20: 25 | H20: 25 | K20: 25 | L20: 0.05208333333 | M20: 24.94791667
B21: 2016-06-15 | C21: Richard Ofori | D21: 21.88 | F21: 21.88 | H21: 21.88 | K21: 21.88 | L21: 0.04558333333 | M21: 21.83441667
B22: 2016-06-15 | C22: Stephen Banenjo | D22: 150 | F22: 150 | H22: 150 | K22: 150 | L22: 0.3125 | M22: 149.6875
B23: 2016-06-15 | C23: Wilhemina Osei Akomeah | D23: 37.5 | F23: 37.5 | H23: 37.5 | K23: 37.5 | L23: 0.078125 | M23: 37.421875
B24: 2016-06-15 | C24: Yaw Asiedu | D24: 25 | F24: 25 | H24: 25 | K24: 25 | L24: 0.05208333333 | M24: 24.94791667
D25: =SUM(D13:D24) -> 835.63 | F25: =SUM(F13:F24) -> 835.63 | G25: =SUM(G13:G24) -> 0 | H25: =SUM(H13:H24) -> 835.63 | K25: =SUM(K13:K24) -> 835.63 | L25: =SUM(L13:L24) -> 1.740895833 | M25: =SUM(M13:M24) -> 833.8891042
A27: 2016-07-31 | B27: 2016-07-14 | C27: Adom Gideon | D27: 27.5 | F27: =+SUM($D27:$E27) -> 27.5 | H27: =SUM($F27,-$G27) -> 27.5 | I27: =SUMIF([1]InterestSharing!$K:$K,$A27,[1]InterestSharing!$I:$I) -> 80.39715616 | K27: =+SUM($H27,$J27) -> 27.5 | L27: =+$K27*2.5/100*0.0833333333333333 -> 0.05729166667 | M27: =SUM($K27,-$L27) -> 27.44270833
B28: 2016-07-14 | C28: Charity Appiah Kubi | D28: 37.5 | F28: 37.5 | H28: 37.5 | K28: 37.5 | L28: 0.078125 | M28: 37.421875
B29: 2016-07-14 | C29: Isaac Bannor | D29: 43.75 | F29: 43.75 | H29: 43.75 | K29: 43.75 | L29: 0.09114583333 | M29: 43.65885417
B30: 2016-07-14 | C30: Isaiah Brobbey | D30: 68.75 | F30: 68.75 | H30: 68.75 | K30: 68.75 | L30: 0.1432291667 | M30: 68.60677083
B31: 2016-07-14 | C31: Judith Danso | D31: 75 | F31: 75 | H31: 75 | K31: 75 | L31: 0.15625 | M31: 74.84375
B32: 2016-07-14 | C32: Lambert Kofi Osei | D32: 320 | F32: 320 | H32: 320 | K32: 320 | L32: 0.6666666667 | M32: 319.3333333
B33: 2016-07-14 | C33: Patricia Asare | D33: 25 | F33: 25 | H33: 25 | K33: 25 | L33: 0.05208333333 | M33: 24.94791667
B34: 2016-07-14 | C34: Richard Ofori | D34: 43.75 | F34: 43.75 | H34: 43.75 | K34: 43.75 | L34: 0.09114583333 | M34: 43.65885417
B35: 2016-07-14 | C35: Stephen Banenjo | D35: 150 | F35: 150 | H35: 150 | K35: 150 | L35: 0.3125 | M35: 149.6875
B36: 2016-07-14 | C36: Wilhemina Osei Akomeah | D36: 37.5 | F36: 37.5 | H36: 37.5 | K36: 37.5 | L36: 0.078125 | M36: 37.421875
B37: 2016-07-14 | C37: Yaw Asiedu | D37: 25 | F37: 25 | H37: 25 | K37: 25 | L37: 0.05208333333 | M37: 24.94791667
D38: =SUM(D27:D37) -> 853.75 | E38: =SUM(E27:E37) -> 0 | F38: =SUM(F27:F37) -> 853.75 | G38: =SUM(G27:G37) -> 0 | H38: =SUM(H27:H37) -> 853.75 | K38: =SUM(K27:K37) -> 853.75 | L38: =SUM(L27:L37) -> 1.778645833 | M38: =SUM(M27:M37) -> 851.9713542
